[Event "Titled Tuesday Blitz August 08 Late 2023"]
[White "Hng, Mei-En Emmanuelle"]
[Black "Bueno, Alfeu Junior Varela"]
[WhiteFideId "5804566"]
[BlackFideId "2108879"]
[WhiteElo "2251"]
[BlackElo "2406"]
[Result "0-1"]
[Round "3"]
[TimeControl "180+1"]
[Date "2023.08.08"]
[WhiteClock "0:01:13"]
[BlackClock "0:01:14"]
[Board "170"]

1. e4 {[%clk 0:03:00]}  e6 {[%clk 0:02:58]} 2. d4 {[%clk 0:03:00]}  d5 {[%clk 0:02:59]} 3. Nc3 {[%clk 0:03:00]}  Nf6 {[%clk 0:02:58]} 4. Bg5 {[%clk 0:02:59]}  Be7 {[%clk 0:02:58]} 5. e5 {[%clk 0:02:58]}  Nfd7 {[%clk 0:02:59]} 6. h4 {[%clk 0:02:59]}  O-O {[%clk 0:02:59]} 7. Qg4 {[%clk 0:02:55]}  Kh8 {[%clk 0:02:59]} 8. Nf3 {[%clk 0:02:52]}  c5 {[%clk 0:02:58]} 9. O-O-O {[%clk 0:02:46]}  Nc6 {[%clk 0:02:58]} 10. dxc5 {[%clk 0:02:44]}  Ndxe5 {[%clk 0:02:57]} 11. Nxe5 {[%clk 0:02:44]}  Nxe5 {[%clk 0:02:58]} 12. Qf4 {[%clk 0:02:41]}  f6 {[%clk 0:02:57]} 13. Qg3 {[%clk 0:02:39]}  Nc6 {[%clk 0:02:53]} 14. Be3 {[%clk 0:02:38]}  d4 {[%clk 0:02:48]} 15. Ne2 {[%clk 0:02:38]}  e5 {[%clk 0:02:47]} 16. c3 {[%clk 0:02:35]}  Bxc5 {[%clk 0:02:45]} 17. cxd4 {[%clk 0:02:35]}  Nxd4 {[%clk 0:02:38]} 18. Nxd4 {[%clk 0:02:32]}  exd4 {[%clk 0:02:36]} 19. Bf4 {[%clk 0:02:31]}  Bf5 {[%clk 0:02:33]} 20. Bd3 {[%clk 0:02:31]}  Bxd3 {[%clk 0:02:28]} 21. Rxd3 {[%clk 0:02:32]}  Qd5 {[%clk 0:02:12]} 22. Kb1 {[%clk 0:02:30]}  Rfe8 {[%clk 0:02:13]} 23. Rhd1 {[%clk 0:02:30]}  Re2 {[%clk 0:01:48]} 24. Be3 {[%clk 0:02:03]}  Qc4 {[%clk 0:01:23]} 25. Ka1 {[%clk 0:01:13]}  Qxd3 {[%clk 0:01:14]} 0-1


[Site "https://www.chess.com"]

[Event "Titled Tuesday Blitz August 08 Late 2023"]
[White "Ozalp, Burak"]
[Black "Kohler, Aran"]
[WhiteFideId "6314210"]
[BlackFideId "1002856"]
[WhiteElo "2405"]
[BlackElo "2244"]
[Result "0-1"]
[Round "3"]
[TimeControl "180+1"]
[Date "2023.08.08"]
[WhiteClock "0:00:02"]
[BlackClock "0:00:26"]
[Board "171"]

1. Nf3 {[%clk 0:03:00]}  Nf6 {[%clk 0:02:58]} 2. c4 {[%clk 0:03:00]}  d6 {[%clk 0:02:57]} 3. d4 {[%clk 0:02:59]}  Bf5 {[%clk 0:02:55]} 4. g3 {[%clk 0:02:58]}  Nbd7 {[%clk 0:02:50]} 5. Bg2 {[%clk 0:02:57]}  c6 {[%clk 0:02:49]} 6. O-O {[%clk 0:02:56]}  h6 {[%clk 0:02:47]} 7. Nfd2 {[%clk 0:02:46]}  e5 {[%clk 0:02:43]} 8. e4 {[%clk 0:02:42]}  Bh7 {[%clk 0:02:40]} 9. d5 {[%clk 0:02:42]}  Qc7 {[%clk 0:02:31]} 10. Nc3 {[%clk 0:02:41]}  Be7 {[%clk 0:02:30]} 11. Qe2 {[%clk 0:02:28]}  cxd5 {[%clk 0:02:22]} 12. cxd5 {[%clk 0:02:15]}  a6 {[%clk 0:02:22]} 13. Rd1 {[%clk 0:02:14]}  O-O {[%clk 0:02:19]} 14. Qc4 {[%clk 0:01:57]}  Qxc4 {[%clk 0:02:16]} 15. Nxc4 {[%clk 0:01:58]}  Rac8 {[%clk 0:02:15]} 16. Ne3 {[%clk 0:01:45]}  b5 {[%clk 0:02:13]} 17. a3 {[%clk 0:01:41]}  Nc5 {[%clk 0:02:11]} 18. f3 {[%clk 0:01:40]}  Nb3 {[%clk 0:02:10]} 19. Rb1 {[%clk 0:01:40]}  Bd8 {[%clk 0:01:59]} 20. Bh3 {[%clk 0:01:37]}  Rb8 {[%clk 0:01:50]} 21. Kf2 {[%clk 0:01:36]}  Bb6 {[%clk 0:01:49]} 22. Ke2 {[%clk 0:01:37]}  Nd4+ {[%clk 0:01:45]} 23. Kf2 {[%clk 0:01:11]}  a5 {[%clk 0:01:45]} 24. Bd2 {[%clk 0:01:08]}  b4 {[%clk 0:01:45]} 25. Na4 {[%clk 0:01:07]}  Ba7 {[%clk 0:01:41]} 26. axb4 {[%clk 0:01:05]}  axb4 {[%clk 0:01:41]} 27. Rdc1 {[%clk 0:00:57]}  Nb3 {[%clk 0:01:32]} 28. Rc2 {[%clk 0:00:53]}  Nxe4+ {[%clk 0:01:27]} 29. fxe4 {[%clk 0:00:49]}  Bxe4 {[%clk 0:01:28]} 30. Rc7 {[%clk 0:00:45]}  Nxd2 {[%clk 0:01:20]} 31. Rd1 {[%clk 0:00:32]}  Ra8 {[%clk 0:01:08]} 32. Rxd2 {[%clk 0:00:29]}  Bd4 {[%clk 0:00:58]} 33. b3 {[%clk 0:00:26]}  f5 {[%clk 0:00:58]} 34. Rxd4 {[%clk 0:00:25]}  exd4 {[%clk 0:00:57]} 35. Nc2 {[%clk 0:00:20]}  d3 {[%clk 0:00:52]} 36. Nxb4 {[%clk 0:00:19]}  Rab8 {[%clk 0:00:51]} 37. Rc4 {[%clk 0:00:13]}  g5 {[%clk 0:00:47]} 38. Bf1 {[%clk 0:00:12]}  d2 {[%clk 0:00:45]} 39. Ke2 {[%clk 0:00:13]}  f4 {[%clk 0:00:45]} 40. g4 {[%clk 0:00:10]}  f3+ {[%clk 0:00:44]} 41. Kxd2 {[%clk 0:00:10]}  Bg6 {[%clk 0:00:37]} 42. Nc3 {[%clk 0:00:10]}  Rfe8 {[%clk 0:00:35]} 43. Bd3 {[%clk 0:00:09]}  Bxd3 {[%clk 0:00:31]} 44. Nxd3 {[%clk 0:00:09]}  Rxb3 {[%clk 0:00:30]} 45. Nd1 {[%clk 0:00:07]}  Ra3 {[%clk 0:00:28]} 46. Ne3 {[%clk 0:00:06]}  Ra2+ {[%clk 0:00:28]} 47. Kc3 {[%clk 0:00:03]}  Rxe3 {[%clk 0:00:28]} 48. Kd4 {[%clk 0:00:03]}  Ree2 {[%clk 0:00:26]} 49. Rc7 {[%clk 0:00:02]}  f2 {[%clk 0:00:25]} 50. Nxf2 {[%clk 0:00:02]}  Rxf2 {[%clk 0:00:26]} 0-1


[Site "https://www.chess.com"]

[Event "Titled Tuesday Blitz August 08 Late 2023"]
[White "Fernandez Hernandez, Gerardo"]
[Black "Herman, Daniel"]
[WhiteFideId "2207400"]
[BlackFideId "30935008"]
[WhiteElo "2231"]
[BlackElo "2400"]
[Result "0-1"]
[Round "3"]
[TimeControl "180+1"]
[Date "2023.08.08"]
[WhiteClock "0:00:00"]
[BlackClock "0:00:28"]
[Board "173"]

1. e4 {[%clk 0:03:00]}  e6 {[%clk 0:02:59]} 2. d4 {[%clk 0:02:58]}  d5 {[%clk 0:02:59]} 3. Bd3 {[%clk 0:02:59]}  dxe4 {[%clk 0:02:59]} 4. Bxe4 {[%clk 0:03:00]}  Nc6 {[%clk 0:02:48]} 5. Ne2 {[%clk 0:02:54]}  Nf6 {[%clk 0:02:48]} 6. Bf3 {[%clk 0:02:54]}  Bd6 {[%clk 0:02:46]} 7. O-O {[%clk 0:02:49]}  e5 {[%clk 0:02:43]} 8. Bxc6+ {[%clk 0:02:41]}  bxc6 {[%clk 0:02:43]} 9. dxe5 {[%clk 0:02:38]}  Bxe5 {[%clk 0:02:44]} 10. Qxd8+ {[%clk 0:02:38]}  Kxd8 {[%clk 0:02:45]} 11. Nbc3 {[%clk 0:02:28]}  Bf5 {[%clk 0:02:43]} 12. Rd1+ {[%clk 0:02:18]}  Kc8 {[%clk 0:02:42]} 13. Nd4 {[%clk 0:02:06]}  Bxd4 {[%clk 0:02:37]} 14. Rxd4 {[%clk 0:02:07]}  Bxc2 {[%clk 0:02:37]} 15. Bg5 {[%clk 0:02:00]}  Re8 {[%clk 0:02:32]} 16. Bxf6 {[%clk 0:01:57]}  gxf6 {[%clk 0:02:33]} 17. Rc1 {[%clk 0:01:56]}  Rb8 {[%clk 0:02:28]} 18. b3 {[%clk 0:01:50]}  Bg6 {[%clk 0:02:13]} 19. f3 {[%clk 0:01:44]}  Rb6 {[%clk 0:02:10]} 20. Na4 {[%clk 0:01:41]}  Ra6 {[%clk 0:01:56]} 21. Nc5 {[%clk 0:01:38]}  Rxa2 {[%clk 0:01:54]} 22. Nd7 {[%clk 0:01:28]}  Ree2 {[%clk 0:01:42]} 23. Nxf6 {[%clk 0:00:47]}  Rxg2+ {[%clk 0:01:41]} 24. Kf1 {[%clk 0:00:46]}  Rxh2 {[%clk 0:01:39]} 25. Kg1 {[%clk 0:00:43]}  Rag2+ {[%clk 0:01:38]} 26. Kf1 {[%clk 0:00:43]}  Ra2 {[%clk 0:00:51]} 27. Kg1 {[%clk 0:00:41]}  Rhb2 {[%clk 0:00:52]} 28. b4 {[%clk 0:00:30]}  Kb7 {[%clk 0:00:47]} 29. Nd7 {[%clk 0:00:27]}  Rb1 {[%clk 0:00:40]} 30. Nc5+ {[%clk 0:00:24]}  Kb6 {[%clk 0:00:39]} 31. Rxb1 {[%clk 0:00:14]}  Bxb1 {[%clk 0:00:40]} 32. Nb3 {[%clk 0:00:09]}  Bg6 {[%clk 0:00:34]} 33. Na5 {[%clk 0:00:08]}  c5 {[%clk 0:00:32]} 34. Nc4+ {[%clk 0:00:06]}  Kb5 {[%clk 0:00:32]} 35. bxc5 {[%clk 0:00:05]}  Kxc5 {[%clk 0:00:31]} 36. Rf4 {[%clk 0:00:05]}  a5 {[%clk 0:00:29]} 37. Ne3 {[%clk 0:00:02]}  a4 {[%clk 0:00:28]} 38. Rc4+ {[%clk 0:00:01]}  Kb5 {[%clk 0:00:28]} 39. Rc3 {[%clk 0:00:00]}  a3 {[%clk 0:00:28]} 0-1


[Site "https://www.chess.com"]

[Event "Titled Tuesday Blitz August 08 Late 2023"]
[White "Muhammad Shahzeb"]
[Black "Schut, Han"]
[WhiteFideId "7804806"]
[BlackFideId "1005561"]
[WhiteElo "2398"]
[BlackElo "2221"]
[Result "1-0"]
[Round "3"]
[TimeControl "180+1"]
[Date "2023.08.08"]
[WhiteClock "0:00:09"]
[BlackClock "0:00:48"]
[Board "174"]

1. e4 {[%clk 0:03:00]}  c5 {[%clk 0:02:57]} 2. Nc3 {[%clk 0:03:00]}  Nc6 {[%clk 0:02:56]} 3. f4 {[%clk 0:03:01]}  g6 {[%clk 0:02:55]} 4. Nf3 {[%clk 0:03:02]}  Bg7 {[%clk 0:02:56]} 5. Bb5 {[%clk 0:03:01]}  Nd4 {[%clk 0:02:56]} 6. Bc4 {[%clk 0:03:01]}  e6 {[%clk 0:02:56]} 7. d3 {[%clk 0:03:02]}  Ne7 {[%clk 0:02:55]} 8. Nxd4 {[%clk 0:03:02]}  cxd4 {[%clk 0:02:53]} 9. Ne2 {[%clk 0:03:03]}  d5 {[%clk 0:02:52]} 10. Bb3 {[%clk 0:03:01]}  dxe4 {[%clk 0:02:52]} 11. dxe4 {[%clk 0:03:00]}  Nc6 {[%clk 0:02:52]} 12. O-O {[%clk 0:03:00]}  O-O {[%clk 0:02:50]} 13. Ng3 {[%clk 0:02:58]}  Na5 {[%clk 0:02:23]} 14. Ba4 {[%clk 0:02:54]}  a6 {[%clk 0:02:15]} 15. f5 {[%clk 0:02:38]}  exf5 {[%clk 0:02:14]} 16. exf5 {[%clk 0:02:37]}  b5 {[%clk 0:02:14]} 17. Bb3 {[%clk 0:02:30]}  Bb7 {[%clk 0:02:05]} 18. fxg6 {[%clk 0:01:57]}  hxg6 {[%clk 0:02:06]} 19. Qg4 {[%clk 0:00:28]}  Nxb3 {[%clk 0:02:03]} 20. axb3 {[%clk 0:00:29]}  Qd5 {[%clk 0:02:00]} 21. Ne2 {[%clk 0:00:28]}  Rae8 {[%clk 0:01:44]} 22. Nf4 {[%clk 0:00:27]}  Qc6 {[%clk 0:01:30]} 23. Bd2 {[%clk 0:00:22]}  Re4 {[%clk 0:01:07]} 24. Bb4 {[%clk 0:00:18]}  Rfe8 {[%clk 0:01:07]} 25. Rf2 {[%clk 0:00:12]}  Re1+ {[%clk 0:01:03]} 26. Rxe1 {[%clk 0:00:10]}  Rxe1+ {[%clk 0:01:04]} 27. Bxe1 {[%clk 0:00:11]}  d3 {[%clk 0:01:02]} 28. Nxd3 {[%clk 0:00:10]}  Qe6 {[%clk 0:00:59]} 29. Qxe6 {[%clk 0:00:10]}  fxe6 {[%clk 0:00:59]} 30. Bc3 {[%clk 0:00:10]}  Bh6 {[%clk 0:00:58]} 31. Re2 {[%clk 0:00:10]}  Kf7 {[%clk 0:00:56]} 32. Be5 {[%clk 0:00:09]}  Ke7 {[%clk 0:00:50]} 33. Bf4 {[%clk 0:00:08]}  Bg7 {[%clk 0:00:49]} 34. Bg5+ {[%clk 0:00:08]}  Kd7 {[%clk 0:00:49]} 35. Nc5+ {[%clk 0:00:08]}  Kc6 {[%clk 0:00:49]} 36. Nxb7 {[%clk 0:00:09]}  Kxb7 {[%clk 0:00:48]} 37. Rxe6 {[%clk 0:00:09]} 1-0


[Site "https://www.chess.com"]

[Event "Titled Tuesday Blitz August 08 Late 2023"]
[White "Biliy, Vadim"]
[Black "Mazurkiewicz, Michal"]
[WhiteFideId "14114127"]
[BlackFideId "1124943"]
[WhiteElo "2219"]
[BlackElo "2398"]
[Result "0-1"]
[Round "3"]
[TimeControl "180+1"]
[Date "2023.08.08"]
[WhiteClock "0:00:00"]
[BlackClock "0:00:18"]
[Board "175"]

1. d4 {[%clk 0:03:00]}  Nf6 {[%clk 0:02:59]} 2. Nf3 {[%clk 0:03:00]}  g6 {[%clk 0:02:59]} 3. e3 {[%clk 0:03:00]}  Bg7 {[%clk 0:03:00]} 4. Be2 {[%clk 0:03:01]}  O-O {[%clk 0:03:00]} 5. O-O {[%clk 0:03:01]}  d6 {[%clk 0:03:01]} 6. b4 {[%clk 0:03:02]}  Nbd7 {[%clk 0:03:02]} 7. c3 {[%clk 0:03:02]}  e5 {[%clk 0:03:02]} 8. dxe5 {[%clk 0:03:00]}  dxe5 {[%clk 0:03:03]} 9. Nbd2 {[%clk 0:03:00]}  Re8 {[%clk 0:03:02]} 10. e4 {[%clk 0:03:00]}  Qe7 {[%clk 0:02:57]} 11. Bc4 {[%clk 0:02:58]}  c5 {[%clk 0:02:56]} 12. a3 {[%clk 0:02:56]}  a6 {[%clk 0:02:53]} 13. Bb2 {[%clk 0:02:32]}  b5 {[%clk 0:02:51]} 14. Bb3 {[%clk 0:02:29]}  c4 {[%clk 0:02:51]} 15. Bc2 {[%clk 0:02:30]}  Bb7 {[%clk 0:02:49]} 16. a4 {[%clk 0:02:26]}  Nf8 {[%clk 0:02:45]} 17. Qe2 {[%clk 0:02:24]}  Qc7 {[%clk 0:02:41]} 18. Ra2 {[%clk 0:02:22]}  Ne6 {[%clk 0:02:41]} 19. g3 {[%clk 0:02:20]}  Bh6 {[%clk 0:02:29]} 20. Rfa1 {[%clk 0:02:17]}  Rad8 {[%clk 0:02:28]} 21. Bc1 {[%clk 0:02:17]}  Nd4 {[%clk 0:01:40]} 22. cxd4 {[%clk 0:01:28]}  exd4 {[%clk 0:01:41]} 23. axb5 {[%clk 0:01:28]}  d3 {[%clk 0:01:34]} 24. Bxd3 {[%clk 0:00:57]}  cxd3 {[%clk 0:01:31]} 25. Qe1 {[%clk 0:00:57]}  Nxe4 {[%clk 0:01:27]} 26. Nxe4 {[%clk 0:00:58]}  Rxe4 {[%clk 0:01:20]} 27. Qd1 {[%clk 0:00:45]}  Bg7 {[%clk 0:00:38]} 28. bxa6 {[%clk 0:00:35]}  Ba8 {[%clk 0:00:37]} 29. Rb1 {[%clk 0:00:16]}  Qc6 {[%clk 0:00:28]} 30. b5 {[%clk 0:00:11]}  Re1+ {[%clk 0:00:18]} 31. Qxe1 {[%clk 0:00:00]}  Qxf3 {[%clk 0:00:18]} 0-1


[Site "https://www.chess.com"]

[Event "Titled Tuesday Blitz August 08 Late 2023"]
[White "Gajwa Ankit"]
[Black "Clawitter, Craig"]
[WhiteFideId "5077834"]
[BlackFideId "2023105"]
[WhiteElo "2381"]
[BlackElo "2194"]
[Result "1-0"]
[Round "3"]
[TimeControl "180+1"]
[Date "2023.08.08"]
[WhiteClock "0:01:59"]
[BlackClock "0:01:28"]
[Board "178"]

1. e4 {[%clk 0:03:00]}  e6 {[%clk 0:02:58]} 2. d4 {[%clk 0:03:00]}  d5 {[%clk 0:02:58]} 3. Nc3 {[%clk 0:03:00]}  Bb4 {[%clk 0:02:57]} 4. e5 {[%clk 0:03:00]}  c5 {[%clk 0:02:58]} 5. a3 {[%clk 0:03:00]}  Bxc3+ {[%clk 0:02:58]} 6. bxc3 {[%clk 0:03:01]}  Ne7 {[%clk 0:02:59]} 7. Qg4 {[%clk 0:03:01]}  Qc7 {[%clk 0:03:00]} 8. Bd3 {[%clk 0:03:01]}  c4 {[%clk 0:03:00]} 9. Bf1 {[%clk 0:03:00]}  Qa5 {[%clk 0:03:00]} 10. Bd2 {[%clk 0:03:00]}  Nf5 {[%clk 0:03:00]} 11. Qf4 {[%clk 0:02:53]}  Qa4 {[%clk 0:02:51]} 12. g4 {[%clk 0:02:50]}  Ne7 {[%clk 0:02:49]} 13. Kd1 {[%clk 0:02:45]}  Nbc6 {[%clk 0:02:47]} 14. Ne2 {[%clk 0:02:43]}  Bd7 {[%clk 0:02:43]} 15. Bg2 {[%clk 0:02:40]}  f6 {[%clk 0:02:22]} 16. exf6 {[%clk 0:02:39]}  O-O {[%clk 0:02:22]} 17. g5 {[%clk 0:02:30]}  gxf6 {[%clk 0:02:07]} 18. gxf6 {[%clk 0:02:28]}  Ng6 {[%clk 0:02:07]} 19. Qg5 {[%clk 0:02:24]}  Rf7 {[%clk 0:01:49]} 20. Nf4 {[%clk 0:02:19]}  Raf8 {[%clk 0:01:43]} 21. Nxg6 {[%clk 0:02:14]}  hxg6 {[%clk 0:01:44]} 22. Qxg6+ {[%clk 0:02:13]}  Kh8 {[%clk 0:01:44]} 23. Qh6+ {[%clk 0:02:10]}  Kg8 {[%clk 0:01:43]} 24. Be4 {[%clk 0:02:03]}  dxe4 {[%clk 0:01:28]} 25. Rg1+ {[%clk 0:02:00]}  Rg7 {[%clk 0:01:28]} 26. Rxg7# {[%clk 0:01:59]} 1-0


[Site "https://www.chess.com"]

[Event "Titled Tuesday Blitz August 08 Late 2023"]
[White "Petersson, Kjell"]
[Black "Korpics, Zsolt"]
[WhiteFideId "1705148"]
[BlackFideId "705241"]
[WhiteElo "2193"]
[BlackElo "2380"]
[Result "1-0"]
[Round "3"]
[TimeControl "180+1"]
[Date "2023.08.08"]
[WhiteClock "0:00:47"]
[BlackClock "0:00:00"]
[Board "179"]

1. d4 {[%clk 0:03:00]}  Nf6 {[%clk 0:02:59]} 2. Bf4 {[%clk 0:03:01]}  d5 {[%clk 0:02:59]} 3. e3 {[%clk 0:03:00]}  c5 {[%clk 0:02:59]} 4. c3 {[%clk 0:03:00]}  Nc6 {[%clk 0:02:58]} 5. Nd2 {[%clk 0:03:00]}  Bf5 {[%clk 0:02:58]} 6. Qb3 {[%clk 0:02:57]}  Qd7 {[%clk 0:02:50]} 7. Ngf3 {[%clk 0:02:56]}  e6 {[%clk 0:02:42]} 8. Bb5 {[%clk 0:02:55]}  a6 {[%clk 0:02:37]} 9. Ne5 {[%clk 0:02:54]}  Qc8 {[%clk 0:02:35]} 10. Bxc6+ {[%clk 0:02:37]}  bxc6 {[%clk 0:02:35]} 11. Qa4 {[%clk 0:02:35]}  Nd7 {[%clk 0:01:29]} 12. Qxc6 {[%clk 0:02:17]}  Qxc6 {[%clk 0:01:24]} 13. Nxc6 {[%clk 0:02:18]}  Bd3 {[%clk 0:01:14]} 14. Nb3 {[%clk 0:02:05]}  Rc8 {[%clk 0:01:05]} 15. Nba5 {[%clk 0:01:53]}  Bb5 {[%clk 0:00:59]} 16. Na7 {[%clk 0:01:49]}  Ra8 {[%clk 0:01:00]} 17. Nxb5 {[%clk 0:01:45]}  axb5 {[%clk 0:01:00]} 18. Nb3 {[%clk 0:01:42]}  c4 {[%clk 0:00:58]} 19. Nd2 {[%clk 0:01:40]}  Be7 {[%clk 0:00:43]} 20. O-O {[%clk 0:01:35]}  O-O {[%clk 0:00:43]} 21. a3 {[%clk 0:01:35]}  f5 {[%clk 0:00:32]} 22. Nf3 {[%clk 0:01:33]}  Nb6 {[%clk 0:00:22]} 23. Ne5 {[%clk 0:01:30]}  Na4 {[%clk 0:00:22]} 24. Rab1 {[%clk 0:01:27]}  g5 {[%clk 0:00:22]} 25. Nc6 {[%clk 0:01:14]}  Bf6 {[%clk 0:00:18]} 26. Be5 {[%clk 0:01:11]}  Kf7 {[%clk 0:00:16]} 27. Bxf6 {[%clk 0:01:08]}  Kxf6 {[%clk 0:00:17]} 28. Ne5 {[%clk 0:01:06]}  Ra7 {[%clk 0:00:14]} 29. h3 {[%clk 0:01:02]}  Nb6 {[%clk 0:00:09]} 30. f4 {[%clk 0:00:55]}  h6 {[%clk 0:00:06]} 31. Rf2 {[%clk 0:00:53]}  Rg8 {[%clk 0:00:04]} 32. fxg5+ {[%clk 0:00:51]}  hxg5 {[%clk 0:00:04]} 33. Rbf1 {[%clk 0:00:50]}  Ke7 {[%clk 0:00:02]} 34. g4 {[%clk 0:00:49]}  Kd6 {[%clk 0:00:01]} 35. gxf5 {[%clk 0:00:48]}  Rh8 {[%clk 0:00:00]} 36. Kg2 {[%clk 0:00:47]} 1-0


[Site "https://www.chess.com"]

[Event "Titled Tuesday Blitz August 08 Late 2023"]
[White "Francisco_Ferrari"]
[Black "Ventura Bolet, Maxim"]
[BlackFideId "22238824"]
[WhiteElo "2177"]
[BlackElo "2373"]
[Result "0-1"]
[Round "3"]
[TimeControl "180+1"]
[Date "2023.08.08"]
[WhiteClock "0:00:02"]
[BlackClock "0:01:12"]
[Board "182"]

1. e4 {[%clk 0:02:27]}  Nf6 {[%clk 0:02:59]} 2. e5 {[%clk 0:02:23]}  Nd5 {[%clk 0:02:59]} 3. c4 {[%clk 0:02:23]}  Nb6 {[%clk 0:02:59]} 4. d4 {[%clk 0:02:24]}  d6 {[%clk 0:02:59]} 5. f4 {[%clk 0:02:25]}  g6 {[%clk 0:02:59]} 6. Nf3 {[%clk 0:02:25]}  Bg7 {[%clk 0:02:59]} 7. Nc3 {[%clk 0:02:17]}  O-O {[%clk 0:02:55]} 8. Be2 {[%clk 0:02:06]}  Be6 {[%clk 0:02:51]} 9. b3 {[%clk 0:02:02]}  dxe5 {[%clk 0:02:50]} 10. fxe5 {[%clk 0:01:58]}  c5 {[%clk 0:02:51]} 11. d5 {[%clk 0:01:55]}  Bg4 {[%clk 0:02:50]} 12. Bf4 {[%clk 0:01:52]}  N6d7 {[%clk 0:02:43]} 13. O-O {[%clk 0:01:23]}  Bxf3 {[%clk 0:02:43]} 14. Bxf3 {[%clk 0:01:24]}  Nxe5 {[%clk 0:02:44]} 15. Be2 {[%clk 0:01:22]}  Nxc4 {[%clk 0:02:32]} 16. Bxc4 {[%clk 0:01:21]}  Bxc3 {[%clk 0:02:33]} 17. d6 {[%clk 0:01:20]}  e6 {[%clk 0:02:23]} 18. Bh6 {[%clk 0:00:56]}  Bg7 {[%clk 0:01:53]} 19. Bxg7 {[%clk 0:00:44]}  Kxg7 {[%clk 0:01:54]} 20. Qf3 {[%clk 0:00:29]}  Nc6 {[%clk 0:01:51]} 21. Rad1 {[%clk 0:00:21]}  Rb8 {[%clk 0:01:41]} 22. Qg3 {[%clk 0:00:15]}  Nd4 {[%clk 0:01:33]} 23. Qe5+ {[%clk 0:00:15]}  f6 {[%clk 0:01:24]} 24. Qxc5 {[%clk 0:00:14]}  e5 {[%clk 0:01:22]} 25. Rxd4 {[%clk 0:00:13]}  exd4 {[%clk 0:01:22]} 26. Qxd4 {[%clk 0:00:12]}  Qb6 {[%clk 0:01:21]} 27. Qxb6 {[%clk 0:00:12]}  axb6 {[%clk 0:01:22]} 28. Re1 {[%clk 0:00:07]}  Rfe8 {[%clk 0:01:17]} 29. Rd1 {[%clk 0:00:04]}  Rbd8 {[%clk 0:01:17]} 30. Bb5 {[%clk 0:00:03]}  Re5 {[%clk 0:01:12]} 31. d7 {[%clk 0:00:02]}  Rxb5 {[%clk 0:01:12]} 0-1


[Site "https://www.chess.com"]

[Event "Titled Tuesday Blitz August 08 Late 2023"]
[White "Adel, Sara"]
[Black "Silva, Kaua Marques"]
[WhiteFideId "10616764"]
[BlackFideId "22701168"]
[WhiteElo "2142"]
[BlackElo "2366"]
[Result "1-0"]
[Round "3"]
[TimeControl "180+1"]
[Date "2023.08.08"]
[WhiteClock "0:00:45"]
[BlackClock "0:00:00"]
[Board "185"]

1. e4 {[%clk 0:02:56]}  e6 {[%clk 0:02:58]} 2. d4 {[%clk 0:02:56]}  d5 {[%clk 0:02:59]} 3. Nd2 {[%clk 0:02:56]}  c5 {[%clk 0:02:55]} 4. Ngf3 {[%clk 0:02:54]}  Nc6 {[%clk 0:02:54]} 5. Bb5 {[%clk 0:02:54]}  cxd4 {[%clk 0:02:48]} 6. Nxd4 {[%clk 0:02:53]}  Bd7 {[%clk 0:02:48]} 7. Bxc6 {[%clk 0:02:49]}  bxc6 {[%clk 0:02:44]} 8. exd5 {[%clk 0:02:48]}  exd5 {[%clk 0:02:45]} 9. O-O {[%clk 0:02:48]}  Bd6 {[%clk 0:02:45]} 10. Re1+ {[%clk 0:02:48]}  Ne7 {[%clk 0:02:45]} 11. Qh5 {[%clk 0:02:48]}  O-O {[%clk 0:02:41]} 12. N2f3 {[%clk 0:02:48]}  Ng6 {[%clk 0:02:38]} 13. Bg5 {[%clk 0:02:47]}  Qb6 {[%clk 0:02:37]} 14. c3 {[%clk 0:02:41]}  Rfe8 {[%clk 0:02:35]} 15. Nh4 {[%clk 0:02:41]}  Nxh4 {[%clk 0:02:30]} 16. Bxh4 {[%clk 0:02:40]}  Qxb2 {[%clk 0:02:27]} 17. Nf5 {[%clk 0:02:40]}  Bxf5 {[%clk 0:02:19]} 18. Qxf5 {[%clk 0:02:39]}  Qxc3 {[%clk 0:02:19]} 19. f3 {[%clk 0:02:36]}  Qd4+ {[%clk 0:02:17]} 20. Bf2 {[%clk 0:02:15]}  Qf4 {[%clk 0:02:16]} 21. Qh3 {[%clk 0:01:58]}  Qf6 {[%clk 0:02:14]} 22. Qd7 {[%clk 0:01:52]}  Red8 {[%clk 0:02:04]} 23. Qb7 {[%clk 0:01:48]}  Rac8 {[%clk 0:01:54]} 24. Rac1 {[%clk 0:01:47]}  c5 {[%clk 0:01:47]} 25. Qxa7 {[%clk 0:01:30]}  d4 {[%clk 0:01:34]} 26. Re4 {[%clk 0:01:27]}  Re8 {[%clk 0:01:13]} 27. Rce1 {[%clk 0:01:27]}  Rxe4 {[%clk 0:01:11]} 28. Rxe4 {[%clk 0:01:27]}  g6 {[%clk 0:01:09]} 29. Qd7 {[%clk 0:01:25]}  Qf5 {[%clk 0:01:07]} 30. Qxd6 {[%clk 0:01:21]}  Kg7 {[%clk 0:00:45]} 31. Bg3 {[%clk 0:01:16]}  h5 {[%clk 0:00:23]} 32. Be5+ {[%clk 0:01:17]}  Kg8 {[%clk 0:00:24]} 33. Bf6 {[%clk 0:01:16]}  Rf8 {[%clk 0:00:10]} 34. Re5 {[%clk 0:00:59]}  Qb1+ {[%clk 0:00:06]} 35. Kf2 {[%clk 0:01:00]}  Qxa2+ {[%clk 0:00:04]} 36. Kg3 {[%clk 0:00:59]}  Qd2 {[%clk 0:00:02]} 37. Rd5 {[%clk 0:00:53]}  Qe1+ {[%clk 0:00:01]} 38. Kh3 {[%clk 0:00:53]}  Qe3 {[%clk 0:00:02]} 39. Rxh5 {[%clk 0:00:44]}  gxh5 {[%clk 0:00:00]} 40. Qg3+ {[%clk 0:00:45]} 1-0


[Site "https://www.chess.com"]

[Event "Titled Tuesday Blitz August 08 Late 2023"]
[White "Kostiukov, Alexandr"]
[Black "Semenova, Alina"]
[WhiteFideId "14108100"]
[BlackFideId "24113875"]
[WhiteElo "2360"]
[BlackElo "2105"]
[Result "1-0"]
[Round "3"]
[TimeControl "180+1"]
[Date "2023.08.08"]
[WhiteClock "0:00:04"]
[BlackClock "0:00:00"]
[Board "187"]

1. g3 {[%clk 0:01:00]}  Nf6 {[%clk 0:02:18]} 2. Bg2 {[%clk 0:00:59]}  g6 {[%clk 0:02:19]} 3. c4 {[%clk 0:00:59]}  Bg7 {[%clk 0:02:19]} 4. Nf3 {[%clk 0:00:59]}  d6 {[%clk 0:02:19]} 5. O-O {[%clk 0:01:00]}  O-O {[%clk 0:02:20]} 6. d4 {[%clk 0:01:00]}  Nc6 {[%clk 0:02:19]} 7. Nc3 {[%clk 0:01:01]}  e5 {[%clk 0:02:17]} 8. d5 {[%clk 0:00:52]}  Nb4 {[%clk 0:02:14]} 9. Qb3 {[%clk 0:00:43]}  a5 {[%clk 0:02:13]} 10. a3 {[%clk 0:00:42]}  Na6 {[%clk 0:02:11]} 11. Qc2 {[%clk 0:00:43]}  Nc5 {[%clk 0:02:05]} 12. Be3 {[%clk 0:00:37]}  Bf5 {[%clk 0:02:04]} 13. Qd1 {[%clk 0:00:30]}  Nfe4 {[%clk 0:01:47]} 14. Nxe4 {[%clk 0:00:19]}  Bxe4 {[%clk 0:01:32]} 15. b4 {[%clk 0:00:16]}  axb4 {[%clk 0:01:25]} 16. axb4 {[%clk 0:00:17]}  Rxa1 {[%clk 0:01:04]} 17. Qxa1 {[%clk 0:00:18]}  Bxf3 {[%clk 0:01:01]} 18. exf3 {[%clk 0:00:16]}  Nd3 {[%clk 0:00:55]} 19. Qc3 {[%clk 0:00:12]}  e4 {[%clk 0:00:53]} 20. Qb3 {[%clk 0:00:11]}  Qf6 {[%clk 0:00:22]} 21. fxe4 {[%clk 0:00:09]}  Ne5 {[%clk 0:00:21]} 22. h3 {[%clk 0:00:06]}  Nf3+ {[%clk 0:00:18]} 23. Kh1 {[%clk 0:00:04]}  Ng5 {[%clk 0:00:11]} 24. c5 {[%clk 0:00:02]}  Re8 {[%clk 0:00:06]} 25. Bxg5 {[%clk 0:00:02]}  Qxg5 {[%clk 0:00:06]} 26. c6 {[%clk 0:00:03]}  bxc6 {[%clk 0:00:04]} 27. dxc6 {[%clk 0:00:04]}  Be5 {[%clk 0:00:02]} 28. b5 {[%clk 0:00:03]}  Re7 {[%clk 0:00:01]} 29. b6 {[%clk 0:00:03]}  cxb6 {[%clk 0:00:00]} 30. Qxb6 {[%clk 0:00:04]} 1-0


[Site "https://www.chess.com"]